fUST/lending_fUST_20251008
["ID","MTS","AMOUNT","RATE_DAILY","PERIOD"]
[389798205,1759852802723,300.0,0.00017184,2]
[389798206,1759852804336,397.9332026,0.00017184,2]
[389798207,1759852804366,802.0667974,0.00017184,2]
[389798208,1759852807018,5000.0,0.00017185,2]
[389798209,1759852809693,-160.0,0.00017185,2]
[389798211,1759852813430,173.0,7.9e-07,2]
[389798212,1759852814483,173.0,7.9e-07,2]
[389798213,1759852815303,5000.0,0.00017185,2]
[389798214,1759852825682,-1211.79038663,0.00017013,2]
[389798215,1759852825714,-151.0,0.00017185,2]
[389798216,1759852825748,-151.0,0.00017185,2]
[389798217,1759852825780,-151.0,0.00017185,2]
[389798218,1759852826590,-151.0,0.00017185,2]
[389798219,1759852826861,-5071.37242934,0.00017185,2]
[389798220,1759852827000,-151.0,0.00017185,2]
[389798221,1759852827017,-9698.01,0.00017185,2]
[389798222,1759852827692,-10000.01,0.00017185,2]
[389798223,1759852827838,-10000.01,0.00017185,2]
[389798224,1759852828192,-10000.01,0.00017185,2]
[389798225,1759852828325,-10000.01,0.00017185,2]
[389798226,1759852833104,151.0,0.000143,2]
[389798227,1759852833452,151.0,0.000132,2]
[389798228,1759852833790,151.0,0.000121,2]
[389798229,1759852833935,-151.0,0.000154,2]
[389798230,1759852833968,-151.0,0.000165,2]
[389798231,1759852834000,-4396.01,0.00017013,2]
[389798232,1759852834059,-603.99,0.00017013,2]
[389798233,1759852834210,151.0,0.00011,2]
[389798234,1759852839880,4801.63075737,0.00017185,2]
[389798236,1759852862485,300.0,0.00017184,2]
[389798237,1759852922798,300.0,0.00017184,2]
[389798238,1759852938886,418.1730002,0.00016332,2]
[389798239,1759852962493,200.0,0.00028739,120]
[389798241,1759852983073,300.0,0.00017184,2]
[389798242,1759853042584,300.0,0.00017184,2]
[389798243,1759853058113,-392.32154985,0.00017185,2]
[389798244,1759853071810,200.0,0.00027414,120]
[389798245,1759853089658,3580.20624243,0.00017,2]
[389798246,1759853089682,10000.01,0.00017,2]
[389798247,1759853089706,10000.01,0.00017,2]
[389798248,1759853089728,10000.01,0.00017,2]
[389798249,1759853089752,10000.01,0.00017,2]
[389798250,1759853089775,10000.01,0.00017,2]
[389798251,1759853089798,10000.01,0.00017,2]
[389798252,1759853089821,10000.01,0.00017,2]
[389798253,1759853089843,5917.24483006,0.00017,2]
[389798254,1759853103199,300.0,0.00017184,2]
[389798255,1759853103835,1200.0,0.00017184,2]
[389798256,1759853115696,2582.76516994,0.00017085,2]
[389798257,1759853115721,6291.91077142,0.00017085,2]
[389798258,1759853117292,151.0,0.00017185,2]
[389798259,1759853117944,202.02958539,0.00017185,2]
[389798260,1759853126556,2663.7039882,0.00016562,2]
[389798261,1759853138319,151.0,0.000162,2]
[389798262,1759853138904,151.0,0.000152,2]
[389798263,1759853139276,151.0,0.000141,2]
[389798264,1759853139699,151.0,0.000131,2]
[389798265,1759853140011,87.36565499,0.00012,2]
[389798266,1759853140035,63.63434501,0.00012,2]
[389798267,1759853140444,151.0,0.00011,2]
[389798268,1759853162773,300.0,0.00017184,2]
[389798269,1759853171208,3670.90911185,0.0002612,55]
[389798270,1759853222432,300.0,0.00017184,2]
[389798275,1759853283031,300.0,0.00017184,2]
[389798276,1759853295676,8885.37565499,0.00016542,2]
[389798277,1759853295700,1114.62434501,0.00016542,2]
[389798278,1759853299868,1141.499089,0.00016542,2]
[389798279,1759853338079,196.15557186,0.00017085,2]
[389798280,1759853342577,300.0,0.00017184,2]
[389798342,1759853395389,386.01,0.00017175,3]
[389798343,1759853404255,1200.0,0.00017184,2]
[389798344,1759853406416,193.01,0.00017175,3]
[389798345,1759853414873,300.0,0.00017184,2]
[389798346,1759853417311,579.04,0.00017175,3]
[389798369,1759853432183,-1941.763218,0.00017185,2]
[389798371,1759853432194,-121790.0,0.00017185,2]
[389798374,1759853432206,-5765.6,0.00017185,2]
[389798376,1759853432218,-43785.31139616,0.00017185,2]
[389798382,1759853432290,-2162.85,0.00017185,2]
[389798384,1759853432302,-1194.683348,0.00017185,2]
[389798461,1759853437957,-844.71,0.00017185,2]
[389798474,1759853438081,-135618.20690709,0.00017185,2]
[389798476,1759853438090,-2826.92869789,0.00017185,2]
[389798478,1759853438099,-50000.0,0.00017185,2]
[389798480,1759853438109,-1000.0,0.00017185,2]
[389798482,1759853438118,-1000.0,0.00017185,2]
[389798484,1759853438128,-1000.0,0.00017185,2]
[389798486,1759853438137,-1000.0,0.00017185,2]
[389798488,1759853438147,-1000.0,0.00017185,2]
[389798490,1759853438157,-1000.0,0.00017185,2]
[389798492,1759853438166,-1000.0,0.00017185,2]
[389798494,1759853438176,-1000.0,0.00017185,2]
[389798496,1759853438186,-1000.0,0.00017185,2]
[389798498,1759853438195,-1000.0,0.00017185,2]
[389798500,1759853438205,-1000.0,0.00017185,2]
[389798502,1759853438215,-1000.0,0.00017185,2]
[389798504,1759853438224,-1000.0,0.00017185,2]
[389798506,1759853438234,-1000.0,0.00017185,2]
[389798508,1759853438244,-1000.0,0.00017185,2]
[389798510,1759853438253,-1000.0,0.00017185,2]
[389798512,1759853438263,-645.75332822,0.00017185,2]
[389798514,1759853438272,-1000.0,0.00017185,2]
[389798516,1759853438282,-1000.0,0.00017185,2]
[389798518,1759853438291,-1000.0,0.00017185,2]
[389798520,1759853438300,-837.16265023,0.00017185,2]
[389798522,1759853438309,-164.66387778,0.00017185,2]
[389798524,1759853438319,-151.0,0.00017185,2]
[389798526,1759853438329,-151.0,0.00017185,2]
[389798528,1759853438338,-151.0,0.00017185,2]
[389798530,1759853438347,-151.0,0.00017185,2]
[389798532,1759853438358,-151.0,0.00017185,2]
[389798534,1759853438368,-151.0,0.00017185,2]
[389798536,1759853438377,-151.0,0.00017185,2]
[389798538,1759853438387,-198.01323381,0.00017185,2]
[389798540,1759853438397,-200.0,0.00017185,2]
[389798542,1759853438406,-500.0,0.000172,2]
[389798544,1759853438415,-2000.0,0.00017285,2]
[389798546,1759853438430,-2000.0,0.00017285,2]
[389798548,1759853438440,-1791.953,0.00017285,2]
[389798550,1759853438449,-1000.0,0.00017285,2]
[389798552,1759853438459,-1000.0,0.00017285,2]
[389798554,1759853438471,-1000.0,0.00017285,2]
[389798556,1759853438483,-222.873,0.00017285,2]
[389798558,1759853438493,-151.0,0.000173,2]
[389798560,1759853438502,-666.0,0.00017362,2]
[389798562,1759853438513,-621.51963675,0.00017398,2]
[389798564,1759853438523,-151.0,0.000175,2]
[389798566,1759853438533,-500.0,0.00017528,2]
[389798568,1759853438543,-300.0,0.00017528,2]
[389798570,1759853438553,-300.0,0.00017528,2]
[389798572,1759853438563,-300.0,0.00017528,2]
[389798574,1759853438573,-300.0,0.00017528,2]
[389798576,1759853438583,-300.0,0.00017528,2]
[389798578,1759853438592,-300.0,0.00017528,2]
[389798580,1759853438602,-300.0,0.00017528,2]
[389798583,1759853438615,-300.0,0.00017528,2]
[389798585,1759853438625,-300.0,0.00017528,2]
[389798587,1759853438635,-300.0,0.00017528,2]
[389798589,1759853438644,-300.0,0.00017528,2]
[389798591,1759853438654,-300.0,0.00017528,2]
[389798593,1759853438664,-300.0,0.00017528,2]
[389798595,1759853438677,-300.0,0.00017528,2]
[389798597,1759853438687,-300.0,0.00017528,2]
[389798599,1759853438697,-600.0,0.00017528,2]
[389798601,1759853438706,-151.0,0.000177,2]
[389798611,1759853438956,-8874.67594135,0.00017706,2]
[389798612,1759853438984,-474.31522575,0.00017802,2]
[389798613,1759853438995,-966.46148311,0.00017808,7]
[389798614,1759853439005,-345.0,0.00017833,2]
[389798615,1759853439015,-8756.11736097,0.00017844,2]
[389798616,1759853439025,-683.67160042,0.00017898,2]
[389798617,1759853439035,-500.0,0.00017973,2]
[389798618,1759853439045,-500.97618271,0.00017973,2]
[389798619,1759853439054,-500.0,0.00017973,2]
[389798621,1759853439064,-500.0,0.00017973,2]
[389798623,1759853439074,-500.0,0.00017973,2]
[389798625,1759853439084,-500.0,0.00017973,2]
[389798627,1759853439095,-501.44821906,0.00017973,2]
[389798629,1759853439105,-500.0,0.00017973,2]
[389798631,1759853439114,-501.8332846,0.00017973,2]
[389798633,1759853439125,-500.0,0.00017973,2]
[389798635,1759853439135,-500.0,0.00017973,2]
[389798637,1759853439145,-500.0,0.00017973,2]
[389798639,1759853439155,-500.0,0.00017973,2]
[389798641,1759853439164,-501.75538328,0.00017973,2]
[389798643,1759853439173,-200.0,0.0001799,10]
[389798645,1759853439183,-100000.0,0.0001799,2]
[389798647,1759853439193,-3089.16571772,0.00018,6]
[389798649,1759853439203,-151.0,0.000181,2]
[389798651,1759853439213,-500.0,0.00018108,2]
[389798653,1759853439223,-446.4,0.00018171,2]
[389798655,1759853439235,-373.33439001,0.00018254,2]
[389798657,1759853439245,-151.0,0.00018266,2]
[389798659,1759853439255,-298.40604511,0.00018271,2]
[389798661,1759853439264,-500.0,0.00018271,2]
[389798663,1759853439273,-500.0,0.00018271,2]
[389798665,1759853439283,-1000.0,0.00018296,2]
[389798667,1759853439293,-151.0,0.000183,2]
[389798669,1759853439303,-8874.67594135,0.00018328,2]
[389798671,1759853439312,-1000.0,0.00018356,2]
[389798673,1759853439322,-745.82356409,0.00018398,2]
[389798675,1759853439332,-500.0,0.00018428,2]
[389798677,1759853439341,-151.0,0.00018433,2]
[389798679,1759853439350,-500.0,0.00018467,2]
[389798681,1759853439363,-500.59789819,0.00018467,2]
[389798683,1759853439373,-500.0,0.00018467,2]
[389798685,1759853439382,-355.66107437,0.00018467,2]
[389798687,1759853439391,-225.16457451,0.00018521,2]
[389798689,1759853439401,-1000.0,0.00018521,2]
[389798691,1759853439410,-1000.0,0.00018521,2]
[389798692,1759853439420,-1000.0,0.00018521,2]
[389798695,1759853439430,-1012.5295479,0.00018521,2]
[389798696,1759853439442,-1000.0,0.00018521,2]
[389798699,1759853439452,-1000.0,0.00018521,2]
[389798703,1759853439461,-1000.0,0.00018521,2]
[389798706,1759853439471,-1000.0,0.00018521,2]
[389798707,1759853439482,-1000.0,0.00018521,2]
[389798709,1759853439492,-501.12521816,0.00018537,2]
[389798711,1759853439501,-772.02,0.00018545,3]
[389798713,1759853439511,-386.02,0.00018545,3]
[389798715,1759853439521,-151.0,0.000186,2]
[389798717,1759853439531,-1000.0,0.0001863,2]
[389798720,1759853439540,-385.26296293,0.00018645,2]
[389798721,1759853439549,-1000.0,0.00018656,2]
[389798724,1759853439559,-420.0,0.00018765,2]
[389798725,1759853439568,-151.0,0.00018766,2]
[389798728,1759853439577,-151.0,0.000188,2]
[389798730,1759853439587,-151.0,0.000188,2]
[389798731,1759853439596,-1000.0,0.00018819,2]
[389798733,1759853439605,-1000.0,0.00018819,2]
[389798737,1759853439615,-514.0,0.00018858,2]
[389798738,1759853439624,-807.97552777,0.00018898,2]
[389798740,1759853439633,-1000.0,0.00018904,2]
[389798742,1759853439643,-151.0,0.00018933,2]
[389798744,1759853439652,-8874.67594135,0.00018949,2]
[389798747,1759853439661,-417.47746486,0.00018976,2]
[389798749,1759853439670,-1000.0,0.00019015,2]
[389798751,1759853439680,-1500.0,0.00019068,2]
[389798753,1759853439689,-1500.0,0.00019068,2]
[389798755,1759853439699,-1500.0,0.00019068,2]
[389798757,1759853439708,-1500.0,0.00019068,2]
[389798759,1759853439718,-1500.0,0.00019068,2]
[389798761,1759853439728,-263.76126891,0.00019068,2]
[389798763,1759853439737,-1500.0,0.00019068,2]
[389798765,1759853439746,-1500.0,0.00019068,2]
[389798767,1759853439756,-151.0,0.000191,2]
[389798769,1759853439765,-248.88959335,0.00019144,2]
[389798771,1759853439775,-1000.0,0.00019178,2]
[389798773,1759853439785,-151.36892429,0.00019178,2]
[389798775,1759853439795,-3307.59957628,0.00019178,2]
[389798777,1759853439805,-1500.0,0.00019204,2]
[389798779,1759853439814,-402.02512307,0.00019213,2]
[389798781,1759853439823,-234.20938206,0.00019213,2]
[389798783,1759853439833,-160.0,0.00019213,2]
[389798785,1759853439843,-533.72506543,0.00019213,2]
[389798787,1759853439852,-720.0,0.0001928,2]
[389798789,1759853439862,-300.0,0.00019315,2]
[389798791,1759853439872,-347.91586692,0.00019367,2]
[389798793,1759853439881,-1500.0,0.00019367,2]
[389798795,1759853439891,-301.60032361,0.00019373,2]
[389798797,1759853439900,-355.14407589,0.00019392,2]
[389798799,1759853439910,-870.12749144,0.00019398,2]
[389798801,1759853439919,-3000.0,0.000194,2]
[389798803,1759853439929,-151.0,0.000194,2]
[389798805,1759853439938,-3000.0,0.0001941,2]
[389798807,1759853439948,-3000.0,0.0001942,2]
[389798809,1759853439958,-3000.0,0.0001943,2]
[389798811,1759853439967,-3000.0,0.0001944,2]
[389798813,1759853439977,-3000.0,0.0001945,2]
[389798815,1759853439987,-1000.0,0.00019452,2]
[389798817,1759853439997,-528.52332229,0.00019452,2]
[389798819,1759853440006,-3000.0,0.0001946,2]
[389798821,1759853440016,-3000.0,0.0001947,2]
[389798823,1759853440025,-3000.0,0.0001948,2]
[389798825,1759853440035,-3000.0,0.0001949,2]
[389798827,1759853440045,-3000.0,0.000195,2]
[389798829,1759853440054,-3000.0,0.0001951,2]
[389798831,1759853440063,-3000.0,0.0001952,2]
[389798833,1759853440072,-3000.0,0.0001953,2]
[389798835,1759853440081,-3000.0,0.0001954,2]
[389798837,1759853440092,-3000.0,0.0001955,2]
[389798839,1759853440101,-3000.0,0.0001956,2]
[389798841,1759853440110,-1606.1442599,0.00019563,2]
[389798843,1759853440119,-3000.0,0.0001957,2]
[389798845,1759853440129,-8874.67594135,0.0001957,2]
[389798847,1759853440138,-3000.0,0.0001958,2]
[389798849,1759853440148,-3000.0,0.0001959,2]
[389798851,1759853440157,-3000.0,0.000196,2]
[389798853,1759853440166,-3000.0,0.0001961,2]
[389798855,1759853440175,-2000.0,0.00019616,2]
[389798857,1759853440185,-2000.0,0.00019616,2]
[389798859,1759853440194,-2000.0,0.00019616,2]
[389798861,1759853440203,-590.40964009,0.00019616,2]
[389798863,1759853440212,-2000.0,0.00019616,2]
[389798865,1759853440221,-2000.0,0.00019616,2]
[389798867,1759853440231,-2000.0,0.00019616,2]
[389798869,1759853440240,-3000.0,0.0001962,2]
[389798871,1759853440249,-3000.0,0.0001963,2]
[389798873,1759853440259,-3000.0,0.0001964,2]
[389798875,1759853440268,-3000.0,0.0001965,2]
[389798877,1759853440278,-3000.0,0.0001966,2]
[389798879,1759853440288,-3000.0,0.0001967,2]
[389798881,1759853440297,-3000.0,0.0001968,2]
[389798883,1759853440306,-3000.0,0.0001969,2]
[389798885,1759853440315,-3000.0,0.000197,2]
[389798887,1759853440325,-3000.0,0.0001971,2]
[389798889,1759853440335,-3000.0,0.0001972,2]
[389798891,1759853440344,-1000.0,0.00019726,2]
[389798893,1759853440353,-3000.0,0.0001973,2]
[389798895,1759853440362,-3000.0,0.0001974,2]
[389798897,1759853440372,-3000.0,0.0001975,2]
[389798899,1759853440381,-529.08275179,0.00019752,2]
[389798901,1759853440390,-3000.0,0.0001976,2]
[389798903,1759853440400,-257.05708716,0.00019763,7]
[389798905,1759853440408,-3000.0,0.0001977,2]
[389798907,1759853440418,-3000.0,0.0001978,2]
[389798909,1759853440430,-3000.0,0.0001979,2]
[389798911,1759853440445,-3000.0,0.000198,2]
[389798913,1759853440455,-3000.0,0.0001981,2]
[389798915,1759853440464,-1232955.396073,0.0001981,2]
[389798917,1759853440475,-3000.0,0.0001982,2]
[389798919,1759853440486,-3000.0,0.0001983,2]
[389798921,1759853440495,-3000.0,0.0001984,2]
[389798923,1759853440505,-3000.0,0.0001985,2]
[389798925,1759853440514,-3000.0,0.0001986,2]
[389798927,1759853440523,-3000.0,0.0001987,2]
[389798929,1759853440532,-3000.0,0.0001988,2]
[389798931,1759853440541,-3000.0,0.0001989,2]
[389798933,1759853440552,-932.27945512,0.00019898,2]
[389798935,1759853440561,-3000.0,0.000199,2]
[389798937,1759853440570,-151.0,0.000199,2]
[389798939,1759853440582,-3000.0,0.0001991,2]
[389798941,1759853440592,-2000.0,0.00019915,2]
[389798944,1759853440601,-3000.0,0.0001992,2]
[389798945,1759853440611,-5206.374724,0.0001993,2]
[389798948,1759853440620,-180.0180018,0.0002,2]
[389798949,1759853440630,-303.04464238,0.0002,2]
[389798951,1759853440640,-1000.0,0.0002,2]
[389798953,1759853440650,-160.0,0.0002001,2]
[389798956,1759853440659,-1000.0,0.0002007,4]
[389798958,1759853440669,-151.0,0.000201,4]
[389798960,1759853440678,-2500.0,0.00020164,2]
[389798962,1759853440689,-2500.0,0.00020164,2]
[389798964,1759853440699,-2500.0,0.00020164,2]
[389798966,1759853440708,-2500.0,0.00020164,2]
[389798968,1759853440717,-2500.0,0.00020164,2]
[389798970,1759853440726,-2500.0,0.00020164,2]
[389798972,1759853440737,-183.11331394,0.00020192,3]
[389798973,1759853440746,-1000.0,0.00020273,2]
[389798976,1759853440755,-311.11199169,0.00020297,2]
[389798977,1759853440764,-994.43141879,0.00020398,2]
[389798980,1759853440775,-151.0,0.000204,3]
[389798981,1759853440784,-174.685,0.00020403,2]
[389798983,1759853440793,-1624.02490268,0.00020463,2]
[389798985,1759853440803,-587.0,0.00020492,2]
[389798988,1759853440812,-1000.0,0.00020547,2]
[389798990,1759853440821,-260.0,0.00020558,2]
[389798992,1759853440831,-168.01695143,0.0002065,2]
[389798993,1759853440840,-3000.0,0.00020712,2]
[389798995,1759853440849,-1000.0,0.00020712,2]
[389798997,1759853440858,-3000.0,0.00020712,2]
[389798999,1759853440868,-3000.0,0.00020712,2]
[389799001,1759853440877,-3000.0,0.00020712,2]
[389799004,1759853440887,-3000.0,0.00020712,2]
[389799006,1759853440896,-1000.0,0.00020821,2]
[389799007,1759853440905,-1056.58338247,0.00020898,2]
[389799010,1759853440914,-157.29,0.00020932,2]
[389799012,1759853440924,-3000.0,0.00021,2]
[389799014,1759853440933,-151.0,0.00021,3]
[389799016,1759853440942,-3000.0,0.0002101,2]
[389799017,1759853440951,-3000.0,0.0002102,2]
[389799019,1759853440960,-3000.0,0.0002103,2]
[389799021,1759853440969,-3000.0,0.0002104,2]
[389799023,1759853440978,-3000.0,0.0002105,2]
[389799025,1759853440988,-3000.0,0.0002106,2]
[389799027,1759853440997,-3000.0,0.0002107,2]
[389799029,1759853441006,-3000.0,0.0002108,2]
[389799031,1759853441015,-3000.0,0.0002109,2]
[389799033,1759853441023,-1000.0,0.00021095,2]
[389799035,1759853441033,-3000.0,0.000211,2]
[389799037,1759853441042,-360.0,0.00021106,2]
[389799039,1759853441051,-3000.0,0.0002111,2]
[389799041,1759853441060,-3000.0,0.0002112,2]
[389799043,1759853441069,-3000.0,0.0002113,2]
[389799045,1759853441079,-3000.0,0.0002114,2]
[389799048,1759853441089,-3000.0,0.0002115,2]
[389799050,1759853441099,-3000.0,0.0002116,2]
[389799052,1759853441109,-3000.0,0.0002117,2]
[389799054,1759853441118,-3000.0,0.0002118,2]
[389799056,1759853441127,-3000.0,0.0002119,2]
[389799058,1759853441136,-3000.0,0.000212,2]
[389799060,1759853441146,-1000.0,0.000212,2]
[389799062,1759853441155,-1000.0,0.000212,2]
[389799064,1759853441164,-1000.0,0.000212,2]
[389799066,1759853441173,-1000.0,0.000212,2]
[389799068,1759853441182,-1000.0,0.000212,2]
[389799070,1759853441192,-1000.0,0.000212,2]
[389799072,1759853441200,-1000.0,0.000212,2]
[389799074,1759853441210,-1000.0,0.000212,2]
[389799076,1759853441219,-1000.0,0.000212,2]
[389799078,1759853441229,-391.570509,0.000212,2]
[389799080,1759853441240,-980.0,0.00021208,2]
[389799082,1759853441250,-2158.0,0.00021208,2]
[389799084,1759853441260,-630.0,0.00021208,2]
[389799086,1759853441270,-864.0,0.00021208,20]
[389799088,1759853441279,-2931.0,0.00021208,2]
[389799090,1759853441288,-3000.0,0.0002121,2]
[389799092,1759853441298,-3000.0,0.0002122,2]
[389799094,1759853441307,-3000.0,0.0002123,2]
[389799096,1759853441317,-3000.0,0.0002124,2]
[389799098,1759853441326,-3000.0,0.0002125,2]
[389799100,1759853441335,-3000.0,0.0002126,2]
[389799102,1759853441345,-3500.0,0.0002126,2]
[389799104,1759853441354,-3500.0,0.0002126,2]
[389799106,1759853441364,-3500.0,0.0002126,2]
[389799108,1759853441373,-3500.0,0.0002126,2]
[389799110,1759853441382,-3500.0,0.0002126,2]
[389799112,1759853441391,-3000.0,0.0002127,2]
[389799114,1759853441401,-3000.0,0.0002128,2]
[389799116,1759853441409,-196.0,0.00021288,4]
[389799118,1759853441419,-3000.0,0.0002129,2]
[389799120,1759853441434,-3000.0,0.000213,2]
[389799122,1759853441443,-1000.0,0.000213,2]
[389799124,1759853441452,-160.0,0.00021308,3]
[389799126,1759853441461,-3000.0,0.0002131,2]
[389799128,1759853441471,-3000.0,0.0002132,2]
[389799130,1759853441482,-3000.0,0.0002133,2]
[389799132,1759853441491,-3000.0,0.0002134,2]
[389799134,1759853441504,-3000.0,0.0002135,2]
[389799136,1759853441514,-3000.0,0.0002136,2]
[389799138,1759853441523,-151.70599437,0.00021369,2]
[389799140,1759853441533,-3000.0,0.0002137,2]
[389799142,1759853441543,-3000.0,0.0002138,2]
[389799144,1759853441553,-177.11105442,0.00021385,2]
[389799146,1759853441565,-3000.0,0.0002139,2]
[389799148,1759853441575,-1118.73534614,0.00021398,2]
[389799150,1759853441584,-3000.0,0.000214,2]
[389799152,1759853441595,-151.0,0.000214,4]
[389799154,1759853441604,-151.0,0.00021405,2]
[389799156,1759853441613,-156.72031789,0.00021405,2]
[389799158,1759853441622,-500.0,0.00021405,2]
[389799160,1759853441631,-500.0,0.00021405,2]
[389799162,1759853441640,-500.0,0.00021405,2]
[389799164,1759853441650,-500.0,0.00021405,2]
[389799166,1759853441659,-500.0,0.00021405,2]
[389799168,1759853441668,-500.0,0.00021405,2]
[389799170,1759853441678,-500.0,0.00021405,2]
[389799172,1759853441686,-598.44763185,0.00021405,2]
[389799174,1759853441696,-13207.5438705,0.00021405,2]
[389799176,1759853441705,-3000.0,0.0002141,2]
[389799178,1759853441714,-3000.0,0.0002142,2]
[389799180,1759853441723,-2200.737,0.00021421,2]
[389799182,1759853441732,-3000.0,0.0002143,2]
[389799184,1759853441742,-4849.063945,0.0002144,2]
[389799186,1759853441751,-373.33439003,0.00021451,2]
[389799188,1759853441760,-500.0,0.0002148,2]
[389799190,1759853441771,-500.0,0.0002148,2]
[389799192,1759853441780,-500.0,0.0002148,2]
[389799194,1759853441789,-500.0,0.0002148,2]
[389799196,1759853441799,-500.0,0.0002148,2]
[389799198,1759853441808,-500.0,0.00021493,2]
[389799200,1759853441818,-500.0,0.00021493,2]
[389799202,1759853441828,-500.0,0.00021493,2]
[389799204,1759853441838,-500.0,0.00021493,2]
[389799206,1759853441847,-500.0,0.00021493,2]
[389799208,1759853441856,-341.61620481,0.00021493,2]
[389799210,1759853441866,-500.0,0.00021493,2]
[389799212,1759853441874,-500.0,0.00021493,2]
[389799214,1759853441884,-200.0,0.0002151,2]
[389799216,1759853441894,-460.0,0.00021654,2]
[389799218,1759853441903,-4000.0,0.00021808,2]
[389799220,1759853441912,-2007.61206826,0.00021808,2]
[389799222,1759853441922,-4000.0,0.00021808,2]
[389799224,1759853441931,-4000.0,0.00021808,2]
[389799226,1759853441941,-4000.0,0.00021808,2]
[389799228,1759853441950,-500.0,0.00021812,2]
[389799230,1759853441959,-500.0,0.00021812,2]
[389799232,1759853441968,-1180.88730982,0.00021898,2]
[389799234,1759853441977,-500.0,0.00021908,2]
[389799236,1759853441987,-200.0,0.0002191,2]
[389799238,1759853441997,-500.0,0.00021913,2]
[389799240,1759853442006,-500.0,0.00021917,2]
[389799242,1759853442016,-255.66736951,0.00021924,2]
[389799244,1759853442025,-526.71245322,0.00021924,2]
[389799246,1759853442034,-500.0,0.00021948,2]
[389799248,1759853442043,-500.0,0.00021948,2]
[389799250,1759853442053,-19361.94710176,0.0002196,2]
[389799252,1759853442062,-36953.97279197,0.00021996,2]
[389799254,1759853442071,-1000.0,0.00022028,2]
[389799256,1759853442080,-556.8347076,0.00022028,2]
[389799258,1759853442089,-1000.0,0.00022028,2]
[389799260,1759853442099,-515.28751069,0.00022041,2]
[389799262,1759853442108,-1000.0,0.00022041,2]
[389799264,1759853442117,-1132.93063219,0.00022041,2]
[389799266,1759853442126,-1000.0,0.00022041,2]
[389799268,1759853442135,-500.0,0.00022097,2]
[389799270,1759853442144,-200.0,0.000221,2]
[389799272,1759853442154,-200.45389814,0.00022117,2]
[389799274,1759853442163,-500.0,0.00022117,2]
[389799276,1759853442172,-500.0,0.00022117,2]
[389799277,1759853442182,-500.0,0.00022117,2]
[389799280,1759853442191,-500.0,0.00022117,2]
[389799282,1759853442201,-231.36839168,0.00022117,2]
[389799284,1759853442211,-500.0,0.00022117,2]
[389799286,1759853442221,-500.0,0.00022117,2]
[389799287,1759853442231,-500.0,0.00022117,2]
[389799290,1759853442240,-500.0,0.00022117,2]
[389799292,1759853442250,-500.0,0.00022117,2]
[389799294,1759853442259,-177.32915195,0.00022117,2]
[389799295,1759853442269,-500.0,0.00022117,2]
[389799297,1759853442278,-500.0,0.00022117,2]
[389799300,1759853442288,-500.0,0.00022117,2]
[389799302,1759853442297,-200.19353786,0.00022117,2]
[389799303,1759853442306,-176.9270828,0.00022117,2]
[389799305,1759853442316,-560.0,0.00022202,2]
[389799307,1759853442326,-291.31504269,0.00022213,2]
[389799309,1759853442335,-500.0,0.00022213,2]
[389799311,1759853442345,-150.56950836,0.00022213,2]
[389799313,1759853442354,-500.0,0.00022213,2]
[389799315,1759853442364,-500.0,0.00022213,2]